[Event "Gibraltar Masters 18th"]
[Site "Gibraltar"]
[Date "2020.01.30"]
[Round "10.15"]
[White "Gukesh, Dommaraju"]
[Black "Vocaturo, Daniele"]
[Result "0-1"]
[ECO "D38"]
[WhiteElo "2542"]
[BlackElo "2622"]
[PlyCount "172"]
[EventDate "2020.01.21"]
[EventType "swiss"]
[EventRounds "10"]
[EventCountry "GGB"]
[SourceTitle "BritBase"]
[Source "John Saunders"]
[SourceDate "2021.06.05"]
[SourceVersion "1"]
[SourceVersionDate "2021.06.05"]
[SourceQuality "1"]
[TimeControl "40/100:0"]
[WhiteClock "0:01:33"]
[BlackClock "0:21:02"]

1. c4 {[%emt 0:00:00]} e6 {[%emt 0:00:00]} 2. Nc3 {[%emt 0:00:00]} d5 {[%emt 0:
00:00]} 3. d4 {[%emt 0:00:00]} Bb4 {[%emt 0:00:00]} 4. Nf3 {[%emt 0:00:00]} Nf6
{[%emt 0:00:00]} 5. Bg5 {[%emt 0:00:00]} Nbd7 {[%emt 0:00:00]} 6. e3 {[%emt 0:
00:00]} c5 {[%emt 0:00:00]} 7. cxd5 {[%emt 0:00:00]} exd5 {[%emt 0:00:00]} 8.
Bb5 {[%emt 0:00:00]} O-O {[%emt 0:00:00]} 9. O-O {[%emt 0:00:00]} Bxc3 {
[%emt 0:00:00]} 10. bxc3 {[%emt 0:00:00]} c4 {[%emt 0:00:00]} 11. Qc2 {[%emt 0:
00:00]} Nb6 {[%emt 0:00:00]} 12. a4 {[%emt 0:00:00]} a6 {[%emt 0:00:00]} 13. a5
{[%emt 0:00:00]} axb5 {[%emt 0:00:00]} 14. axb6 {[%emt 0:00:00]} Rxa1 {[%emt 0:
00:00]} 15. Rxa1 {[%emt 0:00:00]} Qxb6 {[%emt 0:00:00]} 16. Bxf6 {[%emt 0:00:
00]} Qxf6 {[%emt 0:00:00]} 17. Qb2 {[%emt 0:00:00]} Bd7 {[%emt 0:00:00]} 18.
Ne5 {[%emt 0:00:00]} Be8 {[%emt 0:00:00]} 19. Qb4 {[%emt 0:00:00]} Qd8 {
[%emt 0:00:00]} 20. Nf3 {[%emt 0:00:00]} Bc6 {[%emt 0:00:00]} 21. Ne1 {[%emt 0:
00:00]} Qf6 {[%emt 0:00:00]} 22. Qb2 {[%emt 0:00:00]} h5 {[%emt 0:00:00]} 23.
Nf3 {[%emt 0:00:00]} Qf5 {[%emt 0:00:00]} 24. Ne5 {[%emt 0:00:00]} Be8 {
[%emt 0:00:00]} 25. Nf3 {[%emt 0:00:00]} f6 {[%emt 0:00:00]} 26. h3 {[%emt 0:
00:00]} Bc6 {[%emt 0:00:00]} 27. Qb4 {[%emt 0:00:00]} Re8 {[%emt 0:00:00]} 28.
Qb2 {[%emt 0:00:00]} Kf7 {[%emt 0:00:00]} 29. Qb4 {[%emt 0:00:00]} g5 {[%emt 0:
00:00]} 30. Nh2 {[%emt 0:00:00]} Qe4 {[%emt 0:00:00]} 31. Qd6 {[%emt 0:00:00]}
Qe7 {[%emt 0:00:00]} 32. Qxe7+ {[%emt 0:00:00]} Kxe7 {[%emt 0:00:00]} 33. Nf3 {
[%emt 0:00:00]} Bd7 {[%emt 0:00:00]} 34. Ne1 {[%emt 0:00:36]} Bf5 {[%emt 0:00:
00]} 35. Kf1 {[%emt 0:00:23]} Kd7 {[%emt 0:00:00]} 36. Ke2 {[%emt 0:00:06]} Re6
{[%emt 0:00:00]} 37. Ra5 {[%emt 0:00:00]} Rb6 {[%emt 0:00:00]} 38. Kd2 {
[%emt 0:00:00]} Kc6 {[%emt 0:00:00]} 39. Ra8 {[%emt 0:00:02]} Ra6 {[%emt 0:00:
00]} 40. Rf8 {[%emt 0:00:00]} Kd7 {[%emt 0:00:00]} 41. f3 {[%emt 0:00:00]} h4 {
[%emt 0:00:00]} 42. Rf7+ {[%emt 0:00:00]} Ke6 {[%emt 0:00:00]} 43. Rxb7 {
[%emt 0:00:00]} Ra2+ {[%emt 0:00:00]} 44. Kc1 {[%emt 0:00:00]} Re2 {[%emt 0:00:
00]} 45. Kd1 {[%emt 0:00:00]} Rb2 {[%emt 0:00:00]} 46. Kc1 {[%emt 0:00:00]}
Rb1+ {[%emt 0:00:00]} 47. Kd2 {[%emt 0:00:00]} Rb3 {[%emt 0:00:00]} 48. Rb6+ {
[%emt 0:00:00]} Kf7 {[%emt 0:00:00]} 49. Rb8 {[%emt 0:00:00]} Kg7 {[%emt 0:00:
00]} 50. Rb6 {[%emt 0:00:00]} Kg6 {[%emt 0:00:00]} 51. Rb8 {[%emt 0:00:00]} Bb1
{[%emt 0:00:00]} 52. Rb6 {[%emt 0:00:00]} Bf5 {[%emt 0:00:00]} 53. Rb8 {
[%emt 0:00:00]} Rb2+ {[%emt 0:00:00]} 54. Kc1 {[%emt 0:00:00]} Re2 {[%emt 0:00:
00]} 55. Kd1 {[%emt 0:00:00]} Ra2 {[%emt 0:00:00]} 56. Kc1 {[%emt 0:00:00]} Bd3
{[%emt 0:00:00]} 57. Rxb5 {[%emt 0:00:00]} Bf1 {[%emt 0:00:00]} 58. Rb2 {
[%emt 0:00:00]} Rxb2 {[%emt 0:00:00]} 59. Kxb2 {[%emt 0:00:00]} f5 {[%emt 0:00:
00]} 60. Kc2 {[%emt 0:00:00]} Kh5 {[%emt 0:00:00]} 61. e4 {[%emt 0:00:00]} fxe4
{[%emt 0:00:00]} 62. fxe4 {[%emt 0:00:00]} dxe4 {[%emt 0:00:00]} 63. d5 {
[%emt 0:00:00]} Kg6 {[%emt 0:00:00]} 64. Kd2 {[%emt 0:00:00]} Bd3 {[%emt 0:00:
00]} 65. Ke3 {[%emt 0:00:00]} Kf6 {[%emt 0:00:00]} 66. Kd4 {[%emt 0:00:00]} Ke7
{[%emt 0:00:00]} 67. Ke5 {[%emt 0:00:00]} e3 {[%emt 0:00:00]} 68. d6+ {[%emt 0:
01:03]} Kd7 {[%emt 0:00:00]} 69. Kd5 {[%emt 0:00:32]} Bf1 {[%emt 0:00:00]} 70.
Ke4 {[%emt 0:00:04]} e2 {[%emt 0:00:00]} 71. Kf5 {[%emt 0:00:00]} Kxd6 {
[%emt 0:00:00]} 72. Kxg5 {[%emt 0:00:00]} Ke5 {[%emt 0:00:00]} 73. Kxh4 {
[%emt 0:00:00]} Kf4 {[%emt 0:00:00]} 74. g4 {[%emt 0:00:00]} Ke3 {[%emt 0:00:
00]} 75. Kg3 {[%emt 0:00:00]} Kd2 {[%emt 0:00:00]} 76. Nf3+ {[%emt 0:00:00]}
Kd1 {[%emt 0:00:00]} 77. g5 {[%emt 0:00:00]} e1=Q+ {[%emt 0:00:00]} 78. Nxe1 {
[%emt 0:00:00]} Kxe1 {[%emt 0:00:00]} 79. h4 {[%emt 0:00:00]} Kd2 {[%emt 0:00:
00]} 80. h5 {[%emt 0:00:00]} Kxc3 {[%emt 0:00:00]} 81. Kh4 {[%emt 0:01:42]} Bd3
{[%emt 0:00:00]} 82. g6 {[%emt 0:00:00]} Kd4 {[%emt 0:00:00]} 83. Kg5 {[%emt 0:
00:00]} c3 {[%emt 0:00:00]} 84. h6 {[%emt 0:00:00]} c2 {[%emt 0:00:00]} 85. h7
{[%emt 0:00:00]} c1=Q+ {[%emt 0:00:00]} 86. Kf6 {[%emt 0:00:00]} Qh6 {[%emt 0:
00:00]} 0-1

[Event "Gibraltar Masters 18th"]
[Site "Gibraltar"]
[Date "2020.01.30"]
[Round "10.16"]
[White "Mendonca, Leon Luke"]
[Black "Moussard, Jules"]
[Result "0-1"]
[ECO "A88"]
[WhiteElo "2417"]
[BlackElo "2600"]
[PlyCount "190"]
[EventDate "2020.01.21"]
[EventType "swiss"]
[EventRounds "10"]
[EventCountry "GGB"]
[SourceTitle "BritBase"]
[Source "John Saunders"]
[SourceDate "2021.06.05"]
[SourceVersion "1"]
[SourceVersionDate "2021.06.05"]
[SourceQuality "1"]
[TimeControl "40/100:0"]
[WhiteClock "0:04:34"]
[BlackClock "0:37:24"]

1. d4 {[%emt 0:00:00]} f5 {[%emt 0:00:00]} 2. c4 {[%emt 0:00:00]} Nf6 {[%emt 0:
00:00]} 3. Nc3 {[%emt 0:00:00]} d6 {[%emt 0:00:00]} 4. g3 {[%emt 0:00:00]} g6 {
[%emt 0:00:00]} 5. Bg2 {[%emt 0:00:00]} Bg7 {[%emt 0:00:00]} 6. Nf3 {[%emt 0:
00:00]} O-O {[%emt 0:00:00]} 7. O-O {[%emt 0:00:00]} c6 {[%emt 0:00:00]} 8. b3
{[%emt 0:00:00]} Qc7 {[%emt 0:00:00]} 9. Ba3 {[%emt 0:00:00]} Ne4 {[%emt 0:00:
00]} 10. Bb2 {[%emt 0:00:00]} Nxc3 {[%emt 0:00:00]} 11. Bxc3 {[%emt 0:00:00]}
e5 {[%emt 0:00:00]} 12. dxe5 {[%emt 0:00:00]} dxe5 {[%emt 0:00:00]} 13. e4 {
[%emt 0:00:00]} f4 {[%emt 0:00:00]} 14. Qd2 {[%emt 0:00:00]} Bg4 {[%emt 0:00:
00]} 15. Rad1 {[%emt 0:00:00]} Na6 {[%emt 0:00:00]} 16. h3 {[%emt 0:00:00]}
Bxf3 {[%emt 0:00:00]} 17. Bxf3 {[%emt 0:00:00]} Rad8 {[%emt 0:00:00]} 18. Qe2 {
[%emt 0:00:00]} fxg3 {[%emt 0:00:00]} 19. fxg3 {[%emt 0:00:00]} Nc5 {[%emt 0:
00:00]} 20. Bb4 {[%emt 0:00:00]} Qb6 {[%emt 0:00:00]} 21. Bxc5 {[%emt 0:00:00]}
Qxc5+ {[%emt 0:00:00]} 22. Kg2 {[%emt 0:00:00]} Rd4 {[%emt 0:00:00]} 23. Bg4 {
[%emt 0:00:00]} Rfd8 {[%emt 0:00:00]} 24. Rxd4 {[%emt 0:00:00]} exd4 {[%emt 0:
00:00]} 25. Qd3 {[%emt 0:00:00]} Qe5 {[%emt 0:00:00]} 26. Be2 {[%emt 0:00:00]}
Re8 {[%emt 0:00:00]} 27. Qf3 {[%emt 0:00:00]} Qxe4 {[%emt 0:00:00]} 28. Qxe4 {
[%emt 0:00:00]} Rxe4 {[%emt 0:00:00]} 29. Bd3 {[%emt 0:00:00]} Re5 {[%emt 0:00:
00]} 30. Rf4 {[%emt 0:00:00]} Re3 {[%emt 0:00:00]} 31. Rf3 {[%emt 0:00:00]} Re7
{[%emt 0:00:00]} 32. Rf4 {[%emt 0:00:00]} Be5 {[%emt 0:00:00]} 33. Rf2 {
[%emt 0:00:00]} Kg7 {[%emt 0:00:00]} 34. b4 {[%emt 0:00:08]} Bd6 {[%emt 0:00:
00]} 35. a3 {[%emt 0:00:41]} Rd7 {[%emt 0:00:00]} 36. Rf1 {[%emt 0:00:09]} Be7
{[%emt 0:00:00]} 37. h4 {[%emt 0:00:00]} b6 {[%emt 0:00:00]} 38. Rf2 {[%emt 0:
00:07]} a5 {[%emt 0:00:00]} 39. Rb2 {[%emt 0:00:02]} axb4 40. axb4 {[%emt 0:00:
00]} Bd6 {[%emt 0:00:00]} 41. Be4 {[%emt 0:00:00]} c5 {[%emt 0:00:00]} 42. bxc5
{[%emt 0:00:00]} Bxc5 {[%emt 0:00:00]} 43. Ra2 {[%emt 0:00:00]} Kf6 {[%emt 0:
00:00]} 44. Bd3 {[%emt 0:00:00]} Re7 {[%emt 0:00:00]} 45. Rf2+ {[%emt 0:00:00]}
Kg7 {[%emt 0:00:00]} 46. Rf3 {[%emt 0:00:00]} Ra7 {[%emt 0:00:00]} 47. g4 {
[%emt 0:00:00]} Ra2+ {[%emt 0:00:00]} 48. Rf2 {[%emt 0:00:00]} Ra1 {[%emt 0:00:
00]} 49. Rf1 {[%emt 0:00:00]} Ra3 {[%emt 0:00:00]} 50. Rf3 {[%emt 0:00:00]} Be7
{[%emt 0:00:00]} 51. g5 {[%emt 0:00:00]} Bb4 {[%emt 0:00:00]} 52. Be4 {[%emt 0:
00:00]} Ra2+ {[%emt 0:00:00]} 53. Kh3 {[%emt 0:00:00]} Re2 {[%emt 0:00:00]} 54.
Bd5 {[%emt 0:00:00]} Re7 {[%emt 0:00:00]} 55. Kg4 {[%emt 0:00:00]} h6 {[%emt 0:
00:00]} 56. gxh6+ {[%emt 0:00:00]} Kxh6 {[%emt 0:00:00]} 57. Rb3 {[%emt 0:01:
06]} Ba5 {[%emt 0:00:00]} 58. Rf3 {[%emt 0:00:27]} Re1 {[%emt 0:00:00]} 59. Rf6
{[%emt 0:00:06]} d3 {[%emt 0:00:00]} 60. Bf3 {[%emt 0:00:00]} Kg7 {[%emt 0:00:
00]} 61. Rd6 {[%emt 0:00:00]} d2 {[%emt 0:00:00]} 62. Kg5 {[%emt 0:00:00]} Rg1+
{[%emt 0:00:00]} 63. Kf4 {[%emt 0:00:00]} Kf7 {[%emt 0:00:00]} 64. h5 {[%emt 0:
00:00]} Ke7 {[%emt 0:00:00]} 65. Rd5 {[%emt 0:00:00]} gxh5 {[%emt 0:00:00]} 66.
Bxh5 {[%emt 0:00:00]} Bb4 {[%emt 0:00:00]} 67. Bf3 {[%emt 0:00:00]} Re1 {
[%emt 0:00:00]} 68. Bg4 {[%emt 0:00:00]} Bc5 {[%emt 0:00:00]} 69. Bf3 {[%emt 0:
00:00]} Kf6 {[%emt 0:00:00]} 70. Rd3 {[%emt 0:00:00]} Bf8 {[%emt 0:00:00]} 71.
Kg3 {[%emt 0:00:00]} Bb4 {[%emt 0:00:00]} 72. Kf4 {[%emt 0:00:00]} Bc5 {
[%emt 0:00:00]} 73. Bg4 {[%emt 0:00:00]} Bf8 {[%emt 0:00:00]} 74. Kg3 {[%emt 0:
00:00]} Rg1+ {[%emt 0:00:00]} 75. Kh3 {[%emt 0:00:00]} Bh6 {[%emt 0:00:00]} 76.
Be2 {[%emt 0:00:00]} Re1 {[%emt 0:00:00]} 77. Bg4 {[%emt 0:00:00]} Ke5 {
[%emt 0:00:00]} 78. Kg2 {[%emt 0:00:00]} Be3 {[%emt 0:00:00]} 79. Kf3 {[%emt 0:
00:01]} d1=Q+ {[%emt 0:00:00]} 80. Rxd1 {[%emt 0:00:00]} Rxd1 {[%emt 0:00:00]}
81. Kxe3 {[%emt 0:00:45]} Rd4 {[%emt 0:00:00]} 82. Be6 {[%emt 0:00:00]} Rh4 {
[%emt 0:00:00]} 83. Bg8 {[%emt 0:00:00]} Rh3+ {[%emt 0:00:00]} 84. Kd2 {
[%emt 0:00:00]} Kd4 {[%emt 0:00:00]} 85. Kc2 {[%emt 0:00:00]} Rc3+ {[%emt 0:00:
00]} 86. Kb2 {[%emt 0:00:00]} Rxc4 {[%emt 0:00:00]} 87. Kb3 {[%emt 0:00:00]}
Rc1 {[%emt 0:00:00]} 88. Kb2 {[%emt 0:00:00]} Rc3 {[%emt 0:00:00]} 89. Bf7 {
[%emt 0:00:00]} Rf3 {[%emt 0:00:00]} 90. Be6 {[%emt 0:00:00]} Kc5 {[%emt 0:00:
00]} 91. Bg8 {[%emt 0:00:00]} Kb4 {[%emt 0:00:00]} 92. Bd5 {[%emt 0:00:00]}
Rf2+ {[%emt 0:00:00]} 93. Kb1 {[%emt 0:00:00]} Kc3 {[%emt 0:00:00]} 94. Bc6 {
[%emt 0:00:00]} b5 {[%emt 0:00:00]} 95. Bd5 {[%emt 0:00:00]} b4 {[%emt 0:00:00]
} 0-1

[Event "Gibraltar Masters 18th"]
[Site "Gibraltar"]
[Date "2020.01.30"]
[Round "10.17"]
[White "Vaibhav, Suri"]
[Black "Sadhwani, Raunak"]
[Result "1/2-1/2"]
[ECO "C42"]
[WhiteElo "2593"]
[BlackElo "2522"]
[PlyCount "56"]
[EventDate "2020.01.21"]
[EventType "swiss"]
[EventRounds "10"]
[EventCountry "GGB"]
[SourceTitle "BritBase"]
[Source "John Saunders"]
[SourceDate "2021.06.05"]
[SourceVersion "1"]
[SourceVersionDate "2021.06.05"]
[SourceQuality "1"]
[TimeControl "40/100:0"]
[WhiteClock "0:01:29"]
[BlackClock "0:20:57"]

1. e4 {[%emt 0:00:00]} e5 {[%emt 0:00:00]} 2. Nf3 {[%emt 0:00:00]} Nf6 {
[%emt 0:00:00]} 3. Nxe5 {[%emt 0:00:00]} d6 {[%emt 0:00:00]} 4. Nf3 {[%emt 0:
00:00]} Nxe4 {[%emt 0:00:00]} 5. d4 {[%emt 0:00:00]} d5 {[%emt 0:00:00]} 6. Bd3
{[%emt 0:00:00]} Bd6 {[%emt 0:00:00]} 7. O-O {[%emt 0:00:00]} O-O {[%emt 0:00:
00]} 8. c4 {[%emt 0:00:00]} c6 {[%emt 0:00:00]} 9. Qc2 {[%emt 0:00:00]} h6 {
[%emt 0:00:00]} 10. Nc3 {[%emt 0:00:00]} Nxc3 {[%emt 0:00:00]} 11. bxc3 {
[%emt 0:00:00]} dxc4 {[%emt 0:00:00]} 12. Bxc4 {[%emt 0:00:00]} Qa5 {[%emt 0:
00:00]} 13. Bxh6 {[%emt 0:00:00]} Qh5 {[%emt 0:00:00]} 14. Bd2 {[%emt 0:00:00]}
Bg4 {[%emt 0:00:00]} 15. Ne5 {[%emt 0:00:00]} Bxe5 {[%emt 0:00:00]} 16. dxe5 {
[%emt 0:00:00]} Qxe5 {[%emt 0:00:00]} 17. Rfe1 {[%emt 0:00:00]} Qf6 {[%emt 0:
00:00]} 18. Qd3 {[%emt 0:00:00]} Nd7 {[%emt 0:00:00]} 19. Qg3 {[%emt 0:00:00]}
Be6 {[%emt 0:00:00]} 20. Rxe6 {[%emt 0:00:00]} fxe6 {[%emt 0:00:00]} 21. Re1 {
[%emt 0:00:00]} Nc5 {[%emt 0:00:00]} 22. Be3 {[%emt 0:00:00]} Qxc3 {[%emt 0:00:
00]} 23. Rc1 {[%emt 0:00:00]} Qb2 {[%emt 0:00:00]} 24. Qg5 {[%emt 0:00:00]}
Rxf2 {[%emt 0:00:00]} 25. Rd1 {[%emt 0:00:00]} Qc2 {[%emt 0:00:00]} 26. Rc1 {
[%emt 0:00:13]} Qb2 {[%emt 0:00:00]} 27. Rd1 {[%emt 0:00:07]} Qc2 {[%emt 0:00:
00]} 28. Rc1 {[%emt 0:00:00]} Qb2 {[%emt 0:00:00]} 1/2-1/2

[Event "Gibraltar Masters 18th"]
[Site "Gibraltar"]
[Date "2020.01.30"]
[Round "10.18"]
[White "Idani, Pouya"]
[Black "Panjwani, Raja"]
[Result "1/2-1/2"]
[ECO "C65"]
[WhiteElo "2577"]
[BlackElo "2444"]
[PlyCount "75"]
[EventDate "2020.01.21"]
[EventType "swiss"]
[EventRounds "10"]
[EventCountry "GGB"]
[SourceTitle "BritBase"]
[Source "John Saunders"]
[SourceDate "2021.06.05"]
[SourceVersion "1"]
[SourceVersionDate "2021.06.05"]
[SourceQuality "1"]
[TimeControl "40/100:0"]
[WhiteClock "0:24:52"]
[BlackClock "0:15:14"]

1. e4 {[%emt 0:00:00]} e5 {[%emt 0:00:00]} 2. Nf3 {[%emt 0:00:00]} Nc6 {
[%emt 0:00:00]} 3. Bb5 {[%emt 0:00:00]} Nf6 {[%emt 0:00:00]} 4. d3 {[%emt 0:00:
00]} d6 {[%emt 0:00:00]} 5. c3 {[%emt 0:00:00]} Bd7 {[%emt 0:00:00]} 6. O-O {
[%emt 0:00:00]} g6 {[%emt 0:00:00]} 7. h3 {[%emt 0:00:00]} Bg7 {[%emt 0:00:00]}
8. Be3 {[%emt 0:00:00]} O-O {[%emt 0:00:00]} 9. Nbd2 {[%emt 0:00:00]} Kh8 {
[%emt 0:00:00]} 10. Ba4 {[%emt 0:00:00]} Qe8 {[%emt 0:00:00]} 11. Bc2 {[%emt 0:
00:00]} Ng8 {[%emt 0:00:00]} 12. d4 {[%emt 0:00:00]} Bh6 {[%emt 0:00:00]} 13.
Bxh6 {[%emt 0:00:00]} Nxh6 {[%emt 0:00:00]} 14. Nc4 {[%emt 0:00:00]} f6 {
[%emt 0:00:00]} 15. Qd2 {[%emt 0:00:00]} Kg7 {[%emt 0:00:00]} 16. Nh2 {[%emt 0:
00:00]} g5 {[%emt 0:00:00]} 17. Ne3 {[%emt 0:00:00]} Ne7 {[%emt 0:00:00]} 18.
f3 {[%emt 0:00:00]} Nf7 {[%emt 0:00:00]} 19. Rf2 {[%emt 0:00:00]} h5 {[%emt 0:
00:00]} 20. Nhf1 {[%emt 0:00:00]} h4 {[%emt 0:00:00]} 21. Nd5 {[%emt 0:00:00]}
Rc8 {[%emt 0:00:00]} 22. Nfe3 {[%emt 0:00:00]} c6 {[%emt 0:00:00]} 23. Nxe7 {
[%emt 0:00:00]} Qxe7 {[%emt 0:00:00]} 24. Rd1 {[%emt 0:00:00]} Rcd8 {[%emt 0:
00:00]} 25. Qe1 {[%emt 0:00:00]} Bc8 {[%emt 0:00:00]} 26. Rfd2 {[%emt 0:00:00]}
Nh8 {[%emt 0:00:00]} 27. Qf2 {[%emt 0:00:00]} Ng6 {[%emt 0:00:00]} 28. dxe5 {
[%emt 0:00:00]} dxe5 {[%emt 0:00:00]} 29. Nf5+ {[%emt 0:00:00]} Bxf5 {[%emt 0:
00:00]} 30. exf5 {[%emt 0:00:00]} Nf4 {[%emt 0:00:00]} 31. Qxa7 {[%emt 0:00:00]
} Rxd2 {[%emt 0:00:00]} 32. Rxd2 {[%emt 0:00:00]} Qc7 {[%emt 0:00:00]} 33. b4 {
[%emt 0:00:00]} Kh6 {[%emt 0:00:00]} 34. Qa5 {[%emt 0:00:00]} b6 {[%emt 0:00:
00]} 35. Qa4 {[%emt 0:00:00]} Rd8 {[%emt 0:00:00]} 36. Rxd8 {[%emt 0:00:00]}
Qxd8 {[%emt 0:00:00]} 37. Qxc6 {[%emt 0:00:00]} Nh5 {[%emt 0:00:00]} 38. Be4 {
[%emt 0:00:00]} 1/2-1/2

[Event "Gibraltar Masters 18th"]
[Site "Gibraltar"]
[Date "2020.01.30"]
[Round "10.19"]
[White "Tan, Zhongyi"]
[Black "Lagarde, Maxime"]
[Result "1-0"]
[ECO "D24"]
[WhiteElo "2493"]
[BlackElo "2651"]
[PlyCount "71"]
[EventDate "2020.01.21"]
[EventType "swiss"]
[EventRounds "10"]
[EventCountry "GGB"]
[SourceTitle "BritBase"]
[Source "John Saunders"]
[SourceDate "2021.06.05"]
[SourceVersion "1"]
[SourceVersionDate "2021.06.05"]
[SourceQuality "1"]
[TimeControl "40/100:0"]
[WhiteClock "0:10:16"]
[BlackClock "0:10:27"]

1. Nf3 {[%emt 0:00:00]} d5 {[%emt 0:00:00]} 2. d4 {[%emt 0:00:00]} Nf6 {
[%emt 0:00:00]} 3. c4 {[%emt 0:00:00]} e6 {[%emt 0:00:00]} 4. Nc3 {[%emt 0:00:
00]} dxc4 {[%emt 0:00:00]} 5. e4 {[%emt 0:00:00]} b5 {[%emt 0:00:00]} 6. e5 {
[%emt 0:00:00]} Nd5 {[%emt 0:00:00]} 7. Nxb5 {[%emt 0:00:00]} Nb6 {[%emt 0:00:
00]} 8. Be2 {[%emt 0:00:00]} Bb7 {[%emt 0:00:00]} 9. O-O {[%emt 0:00:00]} Nc6 {
[%emt 0:00:00]} 10. Be3 {[%emt 0:00:00]} Qd7 {[%emt 0:00:00]} 11. Qc1 {[%emt 0:
00:00]} Na5 {[%emt 0:00:00]} 12. Nc3 {[%emt 0:00:00]} Qc6 {[%emt 0:00:00]} 13.
Bd2 {[%emt 0:00:00]} Bb4 {[%emt 0:00:00]} 14. Nb1 {[%emt 0:00:00]} Nd5 {
[%emt 0:00:00]} 15. Bxb4 {[%emt 0:00:00]} Nxb4 {[%emt 0:00:00]} 16. Nbd2 {
[%emt 0:00:00]} Nd3 {[%emt 0:00:00]} 17. Qc3 {[%emt 0:00:00]} Nf4 {[%emt 0:00:
00]} 18. Rfe1 {[%emt 0:00:00]} Nxe2+ {[%emt 0:00:00]} 19. Rxe2 {[%emt 0:00:00]}
Qb6 {[%emt 0:00:00]} 20. Ne4 {[%emt 0:00:00]} Bd5 {[%emt 0:00:00]} 21. Nfg5 {
[%emt 0:00:00]} h6 {[%emt 0:00:00]} 22. Nh3 {[%emt 0:00:00]} Bxe4 {[%emt 0:00:
00]} 23. Rxe4 {[%emt 0:00:00]} O-O-O {[%emt 0:00:00]} 24. Nf4 {[%emt 0:00:00]}
Rd7 {[%emt 0:00:00]} 25. b4 {[%emt 0:00:00]} Nc6 {[%emt 0:00:00]} 26. Qxc4 {
[%emt 0:00:00]} Rxd4 {[%emt 0:00:00]} 27. Rxd4 {[%emt 0:00:00]} Qxd4 {[%emt 0:
00:00]} 28. Qa6+ {[%emt 0:00:00]} Kb8 {[%emt 0:00:00]} 29. Rc1 {[%emt 0:00:00]}
Nxb4 {[%emt 0:00:00]} 30. Qe2 {[%emt 0:00:00]} Rd8 {[%emt 0:00:00]} 31. g3 {
[%emt 0:00:00]} g5 {[%emt 0:00:00]} 32. Ng2 {[%emt 0:00:00]} Rd5 {[%emt 0:00:
00]} 33. Ne3 {[%emt 0:00:00]} Rxe5 {[%emt 0:00:00]} 34. Rd1 {[%emt 0:00:00]}
Qe4 {[%emt 0:00:00]} 35. Qb2 {[%emt 0:00:00]} a5 {[%emt 0:00:00]} 36. Rd4 {
[%emt 0:00:00]} 1-0

[Event "Gibraltar Masters 18th"]
[Site "Gibraltar"]
[Date "2020.01.30"]
[Round "10.20"]
[White "Matlakov, Maxim"]
[Black "Beliavsky, Alexander G"]
[Result "1-0"]
[ECO "C45"]
[WhiteElo "2698"]
[BlackElo "2529"]
[PlyCount "107"]
[EventDate "2020.01.21"]
[EventType "swiss"]
[EventRounds "10"]
[EventCountry "GGB"]
[SourceTitle "BritBase"]
[Source "John Saunders"]
[SourceDate "2021.06.05"]
[SourceVersion "1"]
[SourceVersionDate "2021.06.05"]
[SourceQuality "1"]
[TimeControl "40/100:0"]
[WhiteClock "0:07:26"]
[BlackClock "0:38:54"]

1. e4 {[%emt 0:00:00]} e5 {[%emt 0:00:00]} 2. Nf3 {[%emt 0:00:00]} Nc6 {
[%emt 0:00:00]} 3. d4 {[%emt 0:00:00]} exd4 {[%emt 0:00:00]} 4. Nxd4 {[%emt 0:
00:00]} Bc5 {[%emt 0:00:00]} 5. Nb3 {[%emt 0:00:00]} Bb6 {[%emt 0:00:00]} 6.
Nc3 {[%emt 0:00:00]} Nf6 {[%emt 0:00:00]} 7. Qe2 {[%emt 0:00:00]} O-O {[%emt 0:
00:00]} 8. Bg5 {[%emt 0:00:00]} h6 {[%emt 0:00:00]} 9. Bh4 {[%emt 0:00:00]} d6
{[%emt 0:00:00]} 10. O-O-O {[%emt 0:00:00]} Re8 {[%emt 0:00:00]} 11. f3 {
[%emt 0:00:00]} Be6 {[%emt 0:00:00]} 12. Kb1 {[%emt 0:00:00]} Ne5 {[%emt 0:00:
00]} 13. g4 {[%emt 0:00:00]} c6 {[%emt 0:00:00]} 14. h3 {[%emt 0:00:00]} Bxb3 {
[%emt 0:00:00]} 15. axb3 {[%emt 0:00:00]} d5 {[%emt 0:00:00]} 16. Qg2 {[%emt 0:
00:00]} Ng6 {[%emt 0:00:00]} 17. Bg3 {[%emt 0:00:00]} Ba5 {[%emt 0:00:00]} 18.
h4 {[%emt 0:00:00]} Bxc3 {[%emt 0:00:00]} 19. bxc3 {[%emt 0:00:00]} Qa5 {
[%emt 0:00:00]} 20. g5 {[%emt 0:00:00]} Nh5 {[%emt 0:00:00]} 21. gxh6 {[%emt 0:
00:00]} dxe4 {[%emt 0:00:00]} 22. Bc4 {[%emt 0:00:00]} Qxc3 {[%emt 0:00:00]}
23. Bc7 {[%emt 0:00:00]} Ne5 {[%emt 0:00:00]} 24. Bxe5 {[%emt 0:00:00]} Rxe5 {
[%emt 0:00:00]} 25. Bxf7+ {[%emt 0:00:00]} Kxf7 {[%emt 0:00:00]} 26. Rd7+ {
[%emt 0:00:00]} Re7 {[%emt 0:00:00]} 27. Rxe7+ {[%emt 0:00:00]} Kxe7 {[%emt 0:
00:00]} 28. Qg5+ {[%emt 0:00:00]} Nf6 {[%emt 0:00:00]} 29. Qxg7+ {[%emt 0:00:
00]} Ke6 {[%emt 0:00:00]} 30. h7 {[%emt 0:00:00]} e3 {[%emt 0:00:00]} 31. h8=Q
{[%emt 0:00:00]} Rxh8 {[%emt 0:00:00]} 32. Qxh8 {[%emt 0:00:00]} e2 {[%emt 0:
00:00]} 33. Qc8+ {[%emt 0:00:00]} Kd6 {[%emt 0:00:00]} 34. Qb8+ {[%emt 0:00:00]
} Kd7 {[%emt 0:00:29]} 35. Qxb7+ {[%emt 0:00:00]} Kd6 {[%emt 0:00:15]} 36. Qb8+
{[%emt 0:00:00]} Kd7 {[%emt 0:00:00]} 37. Qxa7+ {[%emt 0:00:00]} Kd6 {[%emt 0:
00:00]} 38. Qf2 {[%emt 0:00:00]} Qe5 {[%emt 0:00:00]} 39. f4 {[%emt 0:00:04]}
Qe4 {[%emt 0:00:00]} 40. Re1 {[%emt 0:00:11]} Nd5 {[%emt 0:00:00]} 41. Qg3 {
[%emt 0:00:00]} Qb4 {[%emt 0:00:00]} 42. Kc1 {[%emt 0:00:00]} Nc3 {[%emt 0:00:
00]} 43. f5+ {[%emt 0:00:00]} Kd7 {[%emt 0:00:00]} 44. Qd3+ {[%emt 0:00:00]}
Kc8 {[%emt 0:00:00]} 45. Kd2 {[%emt 0:00:00]} Nd5+ {[%emt 0:00:00]} 46. c3 {
[%emt 0:00:00]} Qxb3 {[%emt 0:00:00]} 47. Rxe2 {[%emt 0:00:00]} Qb2+ {[%emt 0:
00:00]} 48. Qc2 {[%emt 0:00:00]} Qb5 {[%emt 0:00:00]} 49. Qa2 {[%emt 0:00:00]}
Qc5 {[%emt 0:00:00]} 50. Qb3 {[%emt 0:00:00]} Qd6 {[%emt 0:00:00]} 51. Qc4 {
[%emt 0:00:00]} Kc7 {[%emt 0:00:00]} 52. Qd4 {[%emt 0:00:00]} Qa3 {[%emt 0:00:
00]} 53. f6 {[%emt 0:00:00]} Qb2+ {[%emt 0:00:00]} 54. Ke1 {[%emt 0:00:00]} 1-0